bitfinex/quotes_ETHUSD_20260217
["timestamp","ask_amount","ask_price","bid_price","bid_amount"]
[1771343310142,16.925817,1961.3,1960.1,1.27544513]
[1771343310446,6.992943,1961.3,1960.2,1.457]
[1771343310958,9.447402,1961.1,1960.1,0.538]
[1771343311157,0.642,1961.1,1960.1,0.538]
[1771343311451,11.97410099,1961.7,1960.2,1.27538006]
[1771343311452,5.74040887,1961.4,1960.2,1.27538006]
[1771343311631,1.27459977,1961.5,1960.2,1.27538006]
[1771343311632,5.0982571,1961.5,1960.2,1.72774265]
[1771343311833,5.0982571,1961.5,1960.3,0.45236259]
[1771343313020,5.0982571,1961.5,1960.4,0.538]
[1771343313226,4.5923,1961.5,1960.5,1.2751849]
[1771343313752,2.882578,1961.5,1960.5,1.2751849]
[1771343314150,2.882578,1961.5,1960.2,1.27538006]
[1771343314349,15.099478,1961.4,1960.3,1.458]
[1771343314554,0.643,1961.4,1960.3,1.458]
[1771343314879,0.643,1961.4,1960.2,1.27538006]
[1771343314880,0.47248729,1961.2,1960.2,0.539]
[1771343315030,0.643,1961.4,1960.2,0.539]
[1771343315358,1.27466476,1961.3,1960.3,1.275315]
[1771343316551,1.27466476,1961.3,1960.3,1.72767759]
[1771343316859,3.72588,1961.5,1960.3,1.72767759]
[1771343317355,1.27459977,1961.4,1960.3,1.72867759]
[1771343317553,1.27459977,1961.4,1960.3,1.276315]
[1771343317760,1.74708706,1961.4,1960.3,1.276315]
[1771343318018,18.661827,1961.2,1960.3,0.54]
[1771343318470,1.11648729,1961.2,1960.3,0.54]
[1771343318974,6.75196903,1960.7,1959.8,0.539]
[1771343319669,1.27511986,1960.6,1959.8,1.81463734]
[1771343320648,1.27511986,1960.6,1959.9,0.539]
[1771343321769,5.10047944,1960.7,1959.9,0.539]
[1771343322297,1.27505482,1960.7,1959.9,0.539]
[1771343323514,1.27505482,1960.7,1959.6,1.27577056]
[1771343323792,1.27505482,1960.7,1959.9,0.539]
[1771343324009,0.47248729,1960.6,1959.4,1.27590078]
[1771343324168,7.22445632,1960.5,1959.6,0.539]
[1771343324366,7.22445632,1960.5,1959.3,1.27695222]
[1771343324680,7.22445632,1960.5,1959.5,0.539]
[1771343324885,0.645,1960.4,1959.5,0.539]
[1771343325753,1.46217124,1960.3,1959.3,0.001]
[1771343325982,1.46217124,1960.3,1959.3,1.81495831]
[1771343326293,1.46217124,1960.3,1959.4,0.538]
[1771343326489,1.275315,1960.3,1959.4,0.538]
[1771343326691,0.56741915,1960.8,1959.5,0.48390102]
[1771343326692,1.27511986,1960.6,1959.5,0.48390102]
[1771343326854,1.92010838,1960.7,1959.5,0.48390102]
[1771343328373,1.92010838,1960.7,1959.6,1.81377056]
[1771343328577,1.92010838,1960.7,1959.7,0.538]
[1771343330686,1.92010838,1960.7,1959.8,1.27564037]
[1771343331183,1.27510838,1960.7,1959.8,1.27564037]
[1771343331386,5.1002193,1960.9,1959.8,1.75954139]
[1771343331387,1.27492477,1960.9,1959.8,1.75954139]
[1771343332066,1.27492477,1960.9,1959.8,1.76054139]
[1771343332752,1.27479475,1961.1,1959.9,0.45058709]
[1771343333682,5.74517903,1961.3,1959.9,7.33493704]
[1771343333683,1.2746897,1961.3,1959.9,7.33493704]
[1771343333871,1.2746897,1961.3,1960.0,0.45058709]
[1771343334185,1.2746897,1961.3,1960.2,0.45058709]
[1771343334370,1.2746897,1961.3,1960.3,1.36958709]
[1771343334769,0.0011,1961.4,1960.4,1.27524994]
[1771343335372,0.0011,1961.4,1960.5,0.539]
[1771343336892,0.0011,1961.4,1960.6,1.27511986]
[1771343338177,0.0011,1961.4,1960.0,1.2755102]
[1771343338178,0.4705249,1961.4,1960.0,1.2755102]
[1771343338393,0.4694249,1961.2,1959.9,1.27553062]
[1771343338594,0.0011,1961.4,1960.0,0.539]
[1771343338595,0.4694249,1961.0,1960.0,0.539]
[1771343339062,1.27492477,1960.9,1960.0,0.539]
[1771343340512,1.27492477,1960.9,1959.8,1.27660064]
[1771343340700,1.27492477,1960.9,1959.8,0.001]
[1771343340701,1.74434967,1960.9,1959.8,0.001]
[1771343340865,1.74434967,1960.9,1959.9,0.538]
[1771343341061,1.27505482,1960.7,1959.8,0.539]
[1771343341266,1.74447972,1960.7,1959.8,0.001]
[1771343341567,1.74447972,1960.7,1959.8,1.27662881]
[1771343341762,0.18685624,1960.6,1959.8,0.001]
[1771343341967,0.4694249,1960.5,1959.8,0.001]
[1771343342309,0.4694249,1960.5,1959.3,0.001]
[1771343342310,0.4694249,1960.3,1959.3,0.414]
[1771343342513,0.4694249,1960.3,1959.3,1.68995651]
[1771343343042,0.646,1960.4,1959.5,1.27583567]
[1771343343043,1.27524994,1960.4,1959.5,1.27583567]
[1771343343304,1.74467484,1960.4,1959.3,1.27696316]
[1771343343499,1.74467484,1960.4,1959.5,0.538]
[1771343343798,0.4694249,1960.3,1959.4,0.538]
[1771343344201,1.27523857,1960.5,1959.5,0.45058709]
[1771343344403,0.4694249,1960.9,1959.5,0.45058709]
[1771343344701,1.27504155,1960.8,1959.5,0.45058709]
[1771343344889,0.4694249,1961.2,1959.5,0.45058709]
[1771343345094,4.201999,1961.2,1959.7,0.45058709]
[1771343345289,0.646,1961.3,1959.7,0.45058709]
[1771343345500,3.92524,1961.2,1959.7,0.45058709]
[1771343345693,0.646,1961.3,1959.7,0.45058709]
[1771343345896,4.26374,1961.2,1959.7,0.45058709]
[1771343346394,4.7331649,1961.2,1959.7,0.45058709]
[1771343346598,0.4694249,1961.2,1959.8,1.457]
[1771343346801,0.18685624,1961.1,1959.7,0.45058709]
[1771343347014,1.27479475,1961.1,1959.9,1.27557528]
[1771343347215,0.0011,1960.6,1959.9,1.27557528]
[1771343347507,1.27572959,1961.4,1960.0,0.45058709]
[1771343347696,0.0011,1960.7,1960.0,0.45058709]
[1771343348003,0.0011,1960.9,1960.4,0.45058709]
[1771343348515,0.0011,1960.9,1960.5,0.538]
[1771343348675,0.0011,1960.9,1960.0,0.45058709]
[1771343348871,0.0011,1960.9,1960.4,0.537]
[1771343349089,0.0011,1960.9,1960.5,1.72577199]
[1771343350196,0.0011,1961.4,1960.6,0.45058709]
[1771343350990,0.0011,1962.0,1960.9,0.45058709]
[1771343351321,0.0011,1962.0,1961.0,1.457]
[1771343351820,0.0011,1962.0,1960.9,0.45058709]
[1771343352223,0.0011,1962.0,1961.0,1.457]
[1771343352524,0.0011,1962.0,1961.1,0.538]
[1771343353041,0.0011,1962.0,1961.2,0.538]
[1771343353332,0.0011,1962.0,1961.3,1.27466476]
[1771343353701,0.0011,1962.0,1961.2,0.538]
[1771343354398,0.0011,1962.0,1960.8,1.72557689]
[1771343354600,0.47711072,1962.0,1961.1,0.538]
[1771343355297,0.003,1961.5,1961.1,1.81275409]
[1771343355598,0.003,1961.5,1961.1,1.81279062]
[1771343355913,0.003,1961.5,1961.0,0.538]
[1771343356498,0.003,1961.5,1960.8,0.538]
[1771343356705,0.003,1961.5,1960.7,0.538]
[1771343356899,0.47901072,1961.5,1960.4,1.27524994]
[1771343357132,0.47901072,1961.5,1960.5,0.538]
[1771343357508,1.27459977,1961.4,1960.5,0.538]
[1771343357828,1.75061049,1961.4,1960.2,1.27538006]
[1771343358016,7.78955284,1961.3,1960.1,1.27540046]
[1771343358217,0.47601072,1961.2,1960.2,0.538]
[1771343359325,5.162342,1961.3,1960.2,0.538]
[1771343359531,1.27472975,1961.2,1960.2,1.813337]
[1771343359828,1.27472975,1961.2,1960.2,0.538]
[1771343360041,1.27472975,1961.2,1960.2,1.81337458]
[1771343360201,1.75074047,1961.2,1960.2,0.538]
[1771343360397,0.47601072,1960.9,1959.7,1.27570546]
[1771343360632,7.31354212,1960.7,1959.8,0.538]
[1771343360931,0.18685624,1960.7,1959.6,1.81472985]
[1771343361117,0.18685624,1960.9,1959.6,2.28249451]
[1771343361298,7.95754212,1961.0,1959.6,2.28249451]
[1771343361500,1.2749898,1960.8,1959.6,2.28249451]
[1771343362820,7.78955284,1960.7,1959.7,1.457]
[1771343363001,0.47601072,1960.7,1959.7,0.538]
[1771343363608,0.47601072,1960.7,1959.6,0.539]
[1771343363609,7.78955284,1960.5,1959.6,0.539]
[1771343364309,8.43355284,1960.5,1959.6,0.001]
[1771343364509,0.47601072,1960.1,1959.0,0.538]
[1771343365503,1.2755102,1960.0,1959.1,1.27609616]
[1771343367009,1.2755102,1960.0,1959.0,1.81410867]
[1771343367208,1.2755102,1960.0,1959.0,0.538]
[1771343367535,0.47601072,1959.8,1958.9,0.537]
[1771343367839,1.27570546,1959.7,1958.9,0.537]
[1771343368221,1.27570546,1959.7,1958.9,1.81321706]
[1771343368418,1.27570546,1959.7,1958.9,0.537]
[1771343368633,1.27570546,1959.7,1958.6,1.27637488]
[1771343368814,1.75171618,1959.7,1958.8,0.537]
[1771343369913,1.75171618,1959.7,1958.8,1.81323095]
[1771343370547,1.75171618,1959.7,1958.8,0.537]
[1771343370765,0.47601072,1959.6,1958.6,0.537]
[1771343371057,0.47601072,1959.5,1958.5,0.537]
[1771343371852,0.645,1959.6,1958.5,0.537]
[1771343372352,1.27582058,1959.6,1958.6,1.27642193]
[1771343372554,1.27582058,1959.6,1958.6,1.74418659]
[1771343372716,1.27574919,1959.7,1958.6,1.74418659]
[1771343372911,1.27574919,1959.7,1958.4,5.10568773]
[1771343372912,0.66286696,1959.6,1958.2,0.46776466]
[1771343373119,0.47601072,1959.3,1958.2,1.27664435]
[1771343373858,0.47601072,1959.3,1958.1,5.51976619]
[1771343373859,7.78955284,1959.1,1958.8,0.001]
[1771343374154,7.78955284,1959.1,1958.1,0.413]
[1771343374382,1.9221613,1959.0,1958.0,1.2767612]
[1771343374567,1.2761613,1959.0,1958.0,1.74452586]
[1771343374745,1.75197662,1959.4,1958.1,0.46776466]
[1771343374946,1.27577056,1959.6,1958.1,0.46776466]
[1771343375200,1.92177056,1959.6,1958.1,0.46776466]
[1771343376588,1.92177056,1959.6,1958.3,0.46776466]
[1771343376793,1.92177056,1959.6,1958.2,1.81368266]
[1771343376794,0.18685624,1959.4,1958.2,1.81368266]
[1771343377080,7.31354212,1959.3,1958.2,1.81368266]
[1771343377374,0.47601072,1959.3,1958.2,1.81368266]
[1771343377873,1.27577056,1959.6,1958.3,0.46776466]
[1771343378580,1.27577056,1959.6,1958.4,1.74431694]
[1771343378948,1.27577056,1959.6,1958.5,0.46776466]
[1771343379147,1.27544513,1960.1,1958.7,0.46776466]
[1771343379460,1.27544513,1960.1,1958.9,0.46776466]
[1771343380670,5.10153755,1960.2,1959.0,1.2761613]
[1771343380868,5.10153755,1960.2,1959.1,0.537]
[1771343381551,1.27538006,1960.2,1959.2,0.46776466]
[1771343381973,1.27538006,1960.2,1959.0,1.2761613]
[1771343382153,1.27538006,1960.2,1959.1,1.458]
[1771343382353,1.27538006,1960.2,1959.2,0.538]
[1771343382850,5.10137361,1960.3,1959.3,1.2759659]
[1771343383266,1.275315,1960.3,1959.3,1.2759659]
[1771343383465,1.275315,1960.3,1959.3,1.74373056]
[1771343384859,5.10126001,1960.4,1959.3,1.74373056]
[1771343384860,1.27529849,1960.4,1959.3,1.74373056]
[1771343385362,1.27529849,1960.4,1959.4,0.47131339]
[1771343385551,1.92123223,1960.5,1959.4,0.47131339]
[1771343385752,1.27505482,1960.7,1959.5,0.47131339]
[1771343386071,1.27505482,1960.7,1959.7,0.47131339]
[1771343386269,1.27492477,1961.0,1959.7,0.47131339]
[1771343386476,0.45586133,1960.8,1959.8,0.539]
[1771343386682,7.76940345,1960.6,1959.6,0.539]
[1771343386968,0.0011,1960.4,1959.6,1.81475886]
[1771343387185,0.0011,1960.4,1959.6,1.81475866]
[1771343387559,0.0011,1960.4,1959.6,1.81476517]
[1771343388691,0.0011,1960.4,1959.6,0.539]
[1771343388888,0.0011,1960.4,1959.6,1.81476778]
[1771343389182,0.0011,1960.4,1959.6,0.539]
[1771343389983,0.0011,1960.4,1959.6,0.538]
[1771343390554,0.45696133,1960.4,1959.6,0.538]
[1771343390988,0.0011,1960.4,1959.6,0.538]
[1771343391160,0.0011,1960.4,1959.6,1.81375]
[1771343391359,0.0011,1960.4,1959.6,1.81376628]
[1771343391760,0.0011,1960.4,1959.6,0.538]
[1771343392086,0.0011,1960.4,1959.6,1.81376527]
[1771343393649,0.0011,1960.4,1959.6,1.27576527]
[1771343393852,0.0011,1960.4,1959.7,0.538]
[1771343394662,0.0011,1960.4,1959.8,0.47614365]
[1771343395256,0.0011,1960.4,1959.9,1.457]
[1771343395877,0.0011,1960.4,1960.0,1.2755102]
[1771343397085,0.0011,1960.4,1959.9,6.55918913]
[1771343397086,0.0011,1960.4,1959.9,1.457]
[1771343397285,0.0011,1960.4,1959.9,2.73256028]
[1771343397486,0.0011,1960.4,1959.7,5.1026927]
[1771343397792,0.0011,1960.4,1960.0,0.538]
[1771343398119,0.0011,1960.4,1960.1,1.27544513]
[1771343398294,0.0011,1960.4,1960.0,1.8135102]
[1771343400797,0.0011,1960.4,1960.1,0.54]
[1771343401287,0.0011,1960.3,1960.1,0.54]
[1771343401865,0.0011,1960.3,1958.9,1.53138719]
[1771343401866,0.0011,1960.3,1959.3,1.2759659]
[1771343402063,0.48420741,1960.3,1959.3,1.2759659]
[1771343402266,0.48420741,1960.3,1959.4,1.81689517]
[1771343402267,1.75848747,1960.2,1959.4,1.81689517]
[1771343402469,0.0011,1960.3,1959.4,2.29303882]
[1771343402768,0.0011,1960.3,1959.5,0.47614365]
[1771343403467,1.27642552,1960.3,1959.4,1.27589517]
[1771343403668,1.27642552,1960.3,1959.2,1.75216036]
[1771343403669,8.51607834,1960.3,1959.2,1.75216036]
[1771343403895,17.13283441,1960.2,1959.0,5.10454481]
[1771343404214,0.0011,1960.3,1959.5,6.75654541]
[1771343404422,0.0011,1960.3,1959.6,1.39514365]
[1771343404575,0.0011,1960.3,1959.7,1.46]
[1771343404980,0.0011,1960.3,1959.6,0.47614365]
[1771343405377,0.0011,1960.3,1959.7,0.541]
[1771343405574,0.0011,1960.3,1959.4,1.27590078]
[1771343405787,0.0011,1960.3,1959.5,0.541]
[1771343405985,0.48420741,1960.3,1959.3,1.27591537]
[1771343406279,1.27538006,1960.2,1959.4,2.73589939]
[1771343406504,1.27538006,1960.2,1959.5,0.541]
[1771343406682,0.48310741,1960.1,1959.2,0.541]
[1771343407409,0.18685624,1960.0,1958.7,0.47714365]
[1771343407623,0.48310741,1959.8,1958.8,0.54]
[1771343407774,6.75654541,1959.9,1958.7,0.001]
[1771343407775,0.48310741,1959.5,1958.7,0.001]
[1771343407975,7.23965282,1959.3,1958.7,0.001]
[1771343408206,0.48310741,1959.7,1958.7,0.001]
[1771343408416,0.48310741,1959.3,1958.7,0.001]
[1771343408882,1.27577056,1959.6,1958.7,0.001]
[1771343408883,1.75887797,1959.6,1958.7,0.001]
[1771343409084,6.718854,1959.4,1958.7,0.001]
[1771343409275,3.962354,1959.4,1958.7,0.001]
[1771343409474,6.75654541,1959.3,1958.7,0.001]
[1771343409725,0.48310741,1959.2,1958.7,0.001]
[1771343409929,0.48310741,1959.2,1958.5,0.001]
[1771343409930,10.409869,1959.1,1958.5,0.001]
[1771343410129,0.48310741,1959.2,1958.5,0.001]
[1771343410424,1.27609616,1959.1,1958.5,0.001]
[1771343410619,0.48310741,1959.0,1958.5,0.001]
[1771343410772,0.48310741,1959.0,1957.9,1.27783717]
[1771343410773,0.48310741,1958.9,1957.9,0.001]
[1771343410979,0.48310741,1958.9,1957.9,1.27786783]
[1771343411375,1.27609616,1959.1,1957.9,1.27786783]
[1771343411598,1.27590078,1959.4,1958.0,0.47614365]
[1771343412025,5.10295775,1959.7,1958.3,0.47614365]
[1771343412026,1.27570546,1959.7,1958.3,0.47614365]
[1771343412220,2.463629,1959.6,1958.4,1.46]
[1771343412416,1.27583567,1959.5,1958.4,1.27652496]
[1771343412640,1.75894308,1959.5,1958.4,1.81652496]
[1771343412833,1.75894308,1959.5,1958.5,0.54]
[1771343412834,0.48310741,1959.4,1958.5,0.54]
[1771343413023,0.48310741,1959.4,1958.1,5.10674589]
[1771343413024,15.556915,1959.3,1958.1,5.10674589]
[1771343413229,22.31346041,1959.3,1958.3,0.54]
[1771343413530,15.55753,1959.3,1958.3,0.54]
[1771343413731,8.981729,1959.3,1958.3,0.54]
[1771343413908,4.74109,1959.3,1958.3,0.54]
[1771343414315,1.91883567,1959.5,1958.4,1.27655228]
[1771343414316,0.643,1959.5,1958.4,1.27655228]
[1771343414719,5.10289806,1959.7,1958.5,0.48414383]
[1771343414924,1.27570546,1959.7,1958.6,0.48414383]
[1771343415937,5.10231276,1959.9,1958.6,0.48414383]
[1771343416116,12.77965543,1960.2,1958.6,0.48414383]
[1771343416117,0.0011,1960.2,1958.6,0.48414383]
[1771343416321,0.0011,1960.2,1959.0,1.2761613]
[1771343416517,0.0011,1960.2,1959.1,0.54]
[1771343416518,14.525488,1960.1,1959.1,0.54]
[1771343416723,14.257842,1960.1,1959.1,0.54]
[1771343416920,2.0504,1960.1,1959.1,0.54]
[1771343417138,6.75764541,1960.2,1959.1,0.54]
[1771343417646,2.781095,1960.1,1959.1,0.54]
[1771343417839,0.0011,1960.2,1959.1,0.54]
[1771343418055,0.0011,1960.2,1959.3,7.24068924]
[1771343418259,0.0011,1960.2,1959.3,6.75654541]
[1771343418536,0.0011,1960.2,1959.5,1.27583567]
[1771343418750,0.0011,1960.2,1959.6,0.54]
[1771343418910,0.0011,1960.3,1959.8,0.48414383]
[1771343419543,0.0011,1960.5,1959.9,0.48414383]
[1771343419709,0.0011,1960.6,1959.9,0.48414383]
[1771343420538,0.0011,1960.6,1960.0,2.7355102]
[1771343421126,0.0011,1960.6,1960.1,0.54]
[1771343422525,0.0011,1960.6,1960.2,0.541]
[1771343422726,0.0011,1960.6,1960.3,0.541]
[1771343424749,0.0011,1960.6,1960.3,1.81631179]
[1771343425049,0.0011,1961.2,1960.3,1.81631179]
[1771343426349,0.0011,1961.2,1960.4,0.542]
[1771343426868,0.0011,1961.2,1960.4,1.8172462]
[1771343427355,0.0011,1961.2,1960.4,1.81724156]
[1771343427552,0.0011,1961.2,1960.4,1.81724717]
[1771343427724,0.0011,1960.5,1960.4,1.81724717]
[1771343428130,0.0011,1960.5,1960.4,0.542]
[1771343428661,0.0011,1960.5,1960.0,0.001]
[1771343428828,0.0011,1960.5,1960.1,0.543]
[1771343429028,0.0011,1960.5,1960.0,0.001]
[1771343429228,0.0011,1960.5,1960.0,0.544]
[1771343430531,0.0011,1960.6,1960.0,7.78468924]
[1771343430774,0.0011,1960.6,1960.1,0.543]
[1771343431263,0.0011,1960.8,1960.2,7.24068924]
[1771343431556,0.0011,1961.2,1960.3,0.48414383]
[1771343432335,0.0011,1961.2,1960.4,1.462]
[1771343432540,0.0011,1961.2,1960.0,0.48514383]
[1771343432725,0.0011,1961.2,1960.1,1.27544513]
[1771343432933,0.47525908,1961.2,1960.0,1.27647116]
[1771343433256,0.47415908,1961.1,1960.1,0.543]
[1771343434049,0.47415908,1960.9,1960.1,0.543]
[1771343434638,12.722534,1960.8,1960.1,0.543]
[1771343434842,1.27505482,1960.7,1960.1,0.543]
[1771343436873,5.1002193,1960.8,1960.1,0.543]
[1771343437434,1.27479475,1961.1,1960.1,1.81844241]
[1771343438445,0.0011,1961.2,1960.2,0.48414383]
[1771343438669,1.27583281,1961.2,1960.2,0.48414383]
[1771343438864,0.0011,1961.2,1960.3,1.275315]
[1771343440786,0.0011,1961.0,1960.3,1.275315]
[1771343441064,0.0011,1961.0,1960.2,5.10126001]
[1771343442143,0.0011,1961.0,1960.3,0.543]
[1771343442645,0.47525908,1961.0,1960.3,0.543]
[1771343442866,0.47525908,1961.0,1960.0,2.19546202]
[1771343442867,0.47415908,1960.9,1960.1,0.543]
[1771343443072,0.47415908,1960.7,1960.0,0.001]
[1771343443266,1.27511986,1960.6,1960.0,0.001]
[1771343444285,0.48825862,1960.5,1960.0,0.001]
[1771343445046,0.48825862,1960.5,1959.7,0.001]
[1771343445261,1.275315,1960.3,1959.7,0.001]
[1771343445740,5.09970449,1960.9,1959.7,0.001]
[1771343446051,5.09970449,1960.9,1959.7,0.4654777]
[1771343446245,1.76428339,1961.0,1959.7,0.4654777]
[1771343446246,0.0011,1961.0,1960.1,0.4644777]
[1771343446553,0.0011,1961.0,1960.2,1.9254777]
[1771343447253,0.0011,1961.0,1960.3,1.275315]
[1771343447968,0.0011,1961.0,1960.4,0.542]
[1771343448541,0.0011,1961.0,1959.9,1.27557528]
[1771343448737,0.48825862,1960.9,1959.7,1.27666259]
[1771343448941,6.75764541,1961.0,1959.8,0.542]
[1771343448942,0.48825862,1960.8,1959.8,0.542]
[1771343449353,1.27505482,1960.7,1959.8,0.542]
[1771343449559,5.1002193,1960.8,1959.8,0.542]
[1771343449755,0.0011,1961.8,1960.7,2.7286477]
[1771343449978,0.0011,1961.8,1961.0,0.4644777]
[1771343450181,0.003,1962.2,1961.1,0.4644777]
[1771343450381,0.003,1962.2,1961.0,6.75654541]
[1771343450382,5.1002193,1962.1,1961.3,7.22102311]
[1771343450551,5.1002193,1962.1,1961.4,0.543]
[1771343451375,5.1002193,1962.1,1961.5,1.27453479]
[1771343452251,0.003,1962.2,1961.5,1.27453479]
[1771343452458,0.003,1962.2,1961.5,2.19353479]
[1771343456360,0.003,1962.2,1961.6,0.45027417]
[1771343457684,0.003,1962.2,1961.7,1.27440485]
[1771343457990,1.9104784,1963.2,1962.0,7.30317032]
[1771343458156,1.9104784,1963.2,1961.9,0.45027417]
[1771343458157,2.38254245,1963.2,1961.9,0.45027417]
[1771343458480,2.38254245,1963.2,1961.7,8.57757517]
[1771343458481,7.77523437,1963.1,1961.7,1.27440485]
[1771343458688,0.47206405,1962.9,1961.8,0.544]
[1771343459150,0.47206405,1962.9,1961.7,1.27440485]
[1771343459355,0.47206405,1962.9,1961.9,0.544]
[1771343459865,1.27369064,1962.8,1962.0,1.27420998]
[1771343460068,1.27369064,1962.8,1961.9,1.81823111]
[1771343460284,0.47206405,1962.7,1961.6,0.544]
[1771343460484,0.47206405,1962.5,1961.6,0.544]
[1771343461654,0.47206405,1962.5,1961.4,0.544]
[1771343461879,1.74614416,1962.2,1961.2,1.81868177]
[1771343462201,0.47206405,1962.5,1961.2,2.26895594]
[1771343462483,5.09493074,1962.8,1961.4,0.45027417]
[1771343462787,0.47206405,1962.6,1961.5,0.544]
[1771343463169,5.56699479,1962.8,1961.5,0.544]
[1771343463357,0.47206405,1962.7,1961.5,0.544]
[1771343464299,0.47206405,1962.5,1961.5,0.544]
[1771343464457,0.47206405,1962.3,1961.2,1.81872975]
[1771343465388,0.47206405,1962.3,1961.2,0.544]
[1771343465696,0.47316405,1962.2,1961.2,0.544]
[1771343466079,1.74620909,1962.1,1961.2,0.544]
[1771343466461,0.47206405,1962.0,1960.8,1.27493067]
[1771343466788,0.47206405,1962.0,1960.9,0.544]
[1771343468164,1.74633898,1961.9,1960.9,0.544]
[1771343468565,1.74633898,1961.9,1960.9,1.81892311]
[1771343469167,1.74633898,1961.9,1960.9,1.27492311]
[1771343469369,0.47206405,1961.8,1960.7,0.544]
[1771343470287,1.27440485,1961.7,1960.7,1.81902299]
[1771343470672,1.27440485,1961.7,1960.7,2.26929716]
[1771343470879,5.09723604,1961.9,1960.7,2.26929716]
[1771343471066,1.27414504,1962.1,1961.0,0.45027417]
[1771343471394,1.27414504,1962.1,1961.1,0.544]
[1771343471898,5.73344098,1962.2,1961.2,0.45027417]
[1771343471899,1.91122856,1962.2,1961.2,0.45027417]
[1771343472088,0.0011,1962.2,1961.3,0.45027417]
[1771343472283,0.0011,1962.2,1961.4,1.27459977]
[1771343472495,0.0011,1962.2,1961.5,0.544]
[1771343474376,1.73944402,1962.1,1961.1,2.73774033]
[1771343474897,1.73944402,1962.1,1961.1,2.73779214]
[1771343475766,2.37644402,1962.1,1961.1,2.73779214]
[1771343475970,5.09768019,1962.2,1961.1,3.2371173]
[1771343476371,0.0011,1962.2,1961.3,1.27466476]
[1771343477275,0.0011,1962.2,1961.3,1.77398992]
[1771343479380,0.46639898,1962.2,1961.2,1.27568047]
[1771343479585,0.46639898,1962.2,1961.3,0.544]
[1771343479787,1.10339898,1962.2,1961.3,0.544]
[1771343480180,0.46529898,1962.1,1961.2,0.001]
[1771343480774,0.46529898,1961.9,1961.2,0.001]
[1771343481094,1.27433989,1961.8,1961.2,0.001]
[1771343481310,1.73963887,1961.8,1961.2,0.001]
[1771343481489,2.37663887,1961.8,1961.2,0.001]
[1771343482589,0.638,1961.7,1961.2,0.001]
[1771343482773,1.27433989,1961.8,1961.2,0.001]
[1771343483301,1.27427493,1961.9,1961.2,0.001]
[1771343483694,1.27518011,1962.2,1961.2,0.001]
[1771343484692,1.74047909,1962.2,1961.2,0.001]
[1771343484896,0.46529898,1962.1,1961.2,0.001]
[1771343485507,1.73950896,1962.0,1961.2,0.001]
[1771343485675,0.638,1961.9,1961.2,0.001]
[1771343487308,1.10329898,1961.9,1961.2,0.001]
[1771343487612,1.27433989,1961.8,1961.2,0.001]
[1771343488615,1.73963887,1961.8,1961.2,0.001]
[1771343489120,1.27433989,1961.8,1961.2,0.001]
[1771343489700,1.91314504,1962.1,1961.2,0.001]
[1771343490012,0.46529898,1962.0,1961.3,0.001]
[1771343490190,0.46529898,1962.0,1961.2,0.001]
[1771343491299,0.639,1961.9,1961.2,0.001]
[1771343491493,0.0011,1962.1,1961.2,0.001]
[1771343491698,0.639,1962.0,1961.2,0.001]
[1771343491914,0.0011,1962.1,1961.2,0.001]
[1771343492218,0.0011,1962.1,1961.3,0.49932516]
[1771343492414,0.0011,1962.2,1961.6,0.49932516]
[1771343492802,0.0011,1962.2,1961.4,0.542]
[1771343494115,0.0011,1962.2,1961.4,1.81659475]
[1771343494316,0.0011,1962.2,1961.4,1.81658911]
[1771343494620,0.0011,1962.2,1961.2,1.27572961]
[1771343495024,0.46639898,1962.2,1961.2,0.001]
[1771343495994,1.27414504,1962.1,1961.2,0.001]
[1771343498102,0.638,1962.0,1961.2,0.001]
[1771343498793,1.27414504,1962.1,1961.2,0.001]
[1771343498989,1.27414504,1962.1,1961.2,0.50032516]
[1771343499591,0.0011,1962.2,1961.2,0.50032516]
[1771343499792,0.0011,1962.2,1961.4,0.49932516]
[1771343499991,0.0011,1962.2,1961.7,1.77373001]
[1771343500521,0.0011,1962.3,1961.8,0.49932516]
[1771343500818,0.0011,1962.4,1961.8,0.49932516]
[1771343501823,0.0011,1962.4,1961.6,0.542]
[1771343502023,0.0011,1962.4,1961.7,1.27440485]
[1771343502721,0.0011,1962.4,1961.8,0.49932516]
[1771343503024,0.0011,1962.4,1961.7,1.27440485]
[1771343503227,0.0011,1962.3,1961.7,1.27440485]
[1771343503733,5.09425178,1963.0,1961.7,1.27440485]
[1771343503734,0.46529898,1964.3,1962.4,17.458262]
[1771343504034,1.73808179,1964.3,1962.9,0.49932516]
[1771343504326,5.09113792,1964.2,1963.0,0.543]
[1771343504636,0.45944626,1964.0,1963.0,0.543]
[1771343504800,0.45644626,1963.9,1963.0,0.543]
[1771343506019,0.639,1964.0,1963.1,1.273496]
[1771343506020,0.003,1964.0,1963.1,1.273496]
[1771343507215,0.003,1964.0,1963.2,0.47943681]
[1771343507623,0.003,1964.0,1963.3,0.542]
[1771343508135,0.003,1964.0,1963.4,0.47943681]
[1771343508310,1.5264124,1965.4,1963.9,0.47943681]
[1771343508311,1.27200569,1965.4,1963.9,0.47943681]
[1771343508516,1.27200569,1965.4,1963.8,16.570606]
[1771343508517,5.95644353,1965.8,1964.1,0.47943681]
[1771343509537,0.45644626,1966.5,1964.5,0.47943681]
[1771343509731,0.45644626,1966.5,1964.2,0.1024]
[1771343509732,3.64258226,1966.3,1964.8,7.3509558]
[1771343509897,0.45644626,1966.3,1964.9,0.918]
[1771343510100,1e-08,1966.6,1965.3,0.58183681]
[1771343510294,1.85909599,1967.7,1966.1,0.47943681]
[1771343510527,1.85909599,1967.7,1966.2,1.02143681]
[1771343510528,0.1320822,1967.7,1966.2,1.02143681]
[1771343510737,1.40260251,1967.7,1966.3,1.46]
[1771343511110,0.45644626,1967.4,1965.7,0.47943681]
[1771343511309,6.87151899,1967.5,1965.8,0.542]
[1771343511310,6.44038526,1967.1,1965.8,0.542]
[1771343511523,4.80146,1967.0,1965.8,0.542]
[1771343511713,4.80146,1967.0,1965.6,0.918]
[1771343511714,0.45644626,1966.9,1965.4,1.27200569]
[1771343511911,0.45644626,1967.3,1965.7,0.47943681]